bitfinex/quotes_ETHUSD_20250726
["timestamp","ask_amount","ask_price","bid_price","bid_amount"]
[1753541344958,3.0,3739.8,3739.7,0.4453]
[1753541345276,5.458,3739.8,3739.6,2.80766121]
[1753541345481,5.458,3739.8,3739.6,0.1336]
[1753541345785,0.02677178,3739.7,3739.6,0.1336]
[1753541346753,0.50237178,3739.7,3739.6,0.1336]
[1753541348977,0.50237178,3739.7,3739.5,0.002]
[1753541348978,30.0,3739.6,3739.5,0.002]
[1753541349152,2.457,3739.6,3739.5,0.002]
[1753541349975,2.457,3739.6,3739.5,3.61675429]
[1753541350165,2.457,3739.6,3739.5,3.75035429]
[1753541350576,2.458,3739.6,3739.5,3.75035429]
[1753541352089,30.0,3739.9,3739.7,2.67399008]
[1753541352248,2.458,3739.8,3739.6,2.67406069]
[1753541352445,2.458,3739.8,3739.6,3.63066069]
[1753541352874,2.458,3739.8,3739.6,0.9566]
[1753541353854,2.458,3739.8,3739.6,3.63066591]
[1753541354354,2.458,3739.8,3739.6,0.9566]
[1753541354653,2.457,3739.7,3739.6,3.63067241]
[1753541355890,2.456,3739.7,3739.6,3.63067241]
[1753541357189,0.4575,3740.0,3739.6,3.63067241]
[1753541357384,2.456,3739.9,3739.6,3.63067241]
[1753541357574,2.9135,3739.9,3739.7,2.67398527]
[1753541357755,3.0,3740.0,3739.7,2.67398527]
[1753541358089,2.455,3739.9,3739.7,2.67398527]
[1753541358679,2.455,3739.8,3739.7,2.67398527]
[1753541359078,2.455,3739.8,3739.6,3.63067027]
[1753541359792,3.0,3740.0,3739.6,3.63067027]
[1753541360092,2.9125,3739.9,3739.6,3.63067027]
[1753541360594,2.9125,3739.9,3739.7,2.67398834]
[1753541360800,2.455,3739.9,3739.7,2.67398834]
[1753541360999,3.0,3740.0,3739.7,2.67398834]
[1753541361315,0.1346,3740.1,3739.9,2.67385132]
[1753541361316,0.001,3740.1,3739.9,2.67385132]
[1753541361482,2.455,3740.0,3739.9,2.67385132]
[1753541361885,2.455,3740.0,3739.9,3.63045132]
[1753541362111,0.001,3740.1,3740.0,2.67379679]
[1753541362420,2.456,3740.1,3740.0,3.63039679]
[1753541363165,0.001,3740.1,3740.0,3.63039679]
[1753541363481,2.456,3740.1,3740.0,3.63039679]
[1753541364985,0.001,3740.1,3740.0,3.63039679]
[1753541365184,0.001,3740.1,3740.0,4.09293823]
[1753541366081,0.001,3740.1,3740.0,3.63039679]
[1753541374011,0.001,3740.1,3740.0,4.41129679]
[1753541374190,0.001,3740.1,3740.0,4.43803475]
[1753541374384,0.001,3740.1,3740.0,4.41129679]
[1753541377412,0.001,3740.1,3740.0,6.86629679]
[1753541377579,0.001,3740.1,3740.0,7.83635146]
[1753541380209,1e-08,3740.1,3740.0,7.83635146]
[1753541380424,1e-08,3740.1,3740.0,6.09885146]
[1753541380647,0.45750001,3740.1,3740.0,3.64385146]
[1753541380924,1.70910001,3740.1,3739.9,0.1336]
[1753541381336,0.4653,3740.0,3739.9,0.1336]
[1753541381519,0.9228,3740.0,3739.9,0.1336]
[1753541382027,0.9228,3740.0,3739.6,2.6750123]
[1753541382197,0.9288,3739.9,3739.7,0.1336]
[1753541382397,0.9288,3739.9,3739.8,2.67393978]
[1753541382593,0.4698,3739.9,3739.8,2.67393978]
[1753541382909,0.78630001,3740.1,3739.7,0.1336]
[1753541382910,2.92480001,3740.1,3739.9,2.67381932]
[1753541383104,1e-08,3740.1,3740.0,2.67379679]
[1753541383320,1e-08,3740.1,3740.0,2.80739679]
[1753541384497,0.46980001,3740.1,3740.0,2.80739679]
[1753541386013,1e-08,3740.1,3740.0,2.80739679]
[1753541386527,0.46980001,3740.1,3740.0,2.80739679]
[1753541386728,1e-08,3740.1,3740.0,0.1336]
[1753541386957,1e-08,3740.1,3739.9,2.80746635]
[1753541386958,0.92880001,3740.1,3739.9,2.80746635]
[1753541387130,1e-08,3740.1,3740.0,2.67379679]
[1753541387337,0.46980001,3740.1,3740.0,2.67379679]
[1753541388928,1e-08,3740.1,3740.0,2.67379679]
[1753541389137,0.46980001,3740.1,3740.0,2.67379679]
[1753541389314,1e-08,3740.1,3740.0,2.67379679]
[1753541390310,1e-08,3740.1,3740.0,3.26936035]
[1753541392037,1e-08,3740.1,3740.0,4.19406035]
[1753541392251,1e-08,3740.1,3740.0,4.94566035]
[1753541399739,1e-08,3740.1,3740.0,4.97239831]
[1753541400138,1e-08,3740.1,3740.0,4.94566035]
[1753541401028,1e-08,3740.1,3740.0,7.40066035]
[1753541401230,1e-08,3740.1,3740.0,3.26936035]
[1753541401431,0.46980001,3740.1,3740.0,2.67379679]
[1753541404471,1e-08,3740.1,3740.0,2.67379679]
[1753541405430,1e-08,3740.1,3740.0,3.14809679]
[1753541405628,1e-08,3740.1,3740.0,3.59849679]
[1753541406930,1e-08,3740.1,3740.0,2.67379679]
[1753541407131,1e-08,3740.1,3740.0,3.54956035]
[1753541407565,1e-08,3740.1,3740.0,4.47426035]
[1753541407963,1e-08,3740.1,3740.0,4.02386035]
[1753541408269,1e-08,3740.1,3740.0,3.54956035]
[1753541408732,1e-08,3740.1,3740.0,4.02386035]
[1753541409832,1e-08,3740.1,3740.0,4.47426035]
[1753541410032,1e-08,3740.1,3740.0,4.50099831]
[1753541410871,1e-08,3740.1,3740.0,4.47426035]
[1753541412834,1e-08,3740.1,3740.0,4.50099831]
[1753541413168,1e-08,3740.1,3740.0,4.47426035]
[1753541415650,1e-08,3740.1,3740.0,4.02386035]
[1753541416381,1e-08,3740.1,3740.0,3.54956035]
[1753541420351,0.49960001,3740.1,3740.0,3.55056035]
[1753541420551,0.49960001,3740.1,3740.0,2.67479679]
[1753541421203,1.75430001,3740.1,3740.0,0.001]
[1753541421662,31.78107179,3740.1,3740.0,0.001]
[1753541421850,31.75430001,3740.1,3740.0,0.001]
[1753541422862,34.75430001,3740.1,3740.0,0.001]
[1753541424189,37.20830001,3740.1,3740.0,0.001]
[1753541429904,36.26220001,3740.1,3740.0,2.67479679]
[1753541430217,3.26220001,3740.1,3740.0,2.67479679]
[1753541430373,0.80820001,3740.1,3740.0,2.67479679]
[1753541430569,2.45400001,3740.1,3740.0,2.67479679]
[1753541431104,2.95360001,3740.1,3740.0,2.67479679]
[1753541431602,2.45400001,3740.1,3740.0,3.72769679]
[1753541431803,1e-08,3740.1,3740.0,4.36795743]
[1753541435198,1e-08,3740.1,3740.0,3.90865743]
[1753541435406,1e-08,3740.1,3740.0,3.26839679]
[1753541435603,1e-08,3740.1,3740.0,2.80839679]
[1753541436000,0.49960001,3740.1,3740.0,0.1346]
[1753541436203,1.74407179,3740.1,3740.0,0.001]
[1753541436505,1.71730001,3740.1,3740.0,0.001]
[1753541436694,2.15638246,3740.1,3740.0,0.001]
[1753541438091,1.71730001,3740.1,3740.0,0.001]
[1753541440076,1.27080001,3740.1,3740.0,0.001]
[1753541440476,3.72480001,3740.1,3740.0,0.001]
[1753541440724,0.77120001,3740.1,3740.0,0.001]
[1753541440890,1e-08,3740.1,3740.0,2.67479679]
[1753541441080,2.45400001,3740.1,3740.0,3.26839679]
[1753541441574,2.45400001,3740.1,3740.0,2.80839679]
[1753541442417,3.38990001,3740.1,3740.0,0.001]
[1753541442578,3.80578001,3740.1,3740.0,0.001]
[1753541443819,2.94980001,3740.1,3740.0,0.001]
[1753541445193,2.45400001,3740.1,3740.0,2.67479679]
[1753541447090,1e-08,3740.1,3740.0,3.58629679]
[1753541447418,1e-08,3740.1,3740.0,3.71989679]
[1753541447720,1e-08,3740.1,3740.0,4.44162517]
[1753541453425,1e-08,3740.1,3740.0,3.98452517]
[1753541454428,1e-08,3740.1,3740.0,4.44162517]
[1753541458433,1e-08,3740.1,3740.0,5.28206313]
[1753541458597,1e-08,3740.1,3740.0,5.25532517]
[1753541460232,1e-08,3740.1,3740.0,7.70832517]
[1753541460455,1e-08,3740.1,3740.0,10.57472517]
[1753541462134,1e-08,3740.1,3740.0,8.12172517]
[1753541462324,1e-08,3740.1,3740.0,10.57472517]
[1753541463449,1e-08,3740.1,3740.0,5.12172517]
[1753541463602,1e-08,3740.1,3740.0,6.66322517]
[1753541464433,1e-08,3740.1,3740.0,7.57472517]
[1753541464922,1e-08,3740.1,3740.0,7.11762517]
[1753541465126,1e-08,3740.1,3740.0,7.57472517]
[1753541468731,1e-08,3740.1,3740.0,7.11762517]
[1753541469441,1e-08,3740.8,3740.0,7.11762517]
[1753541469442,1e-08,3740.8,3740.7,2.67329644]
[1753541469603,1e-08,3740.8,3740.7,5.93729644]
[1753541469805,1e-08,3740.8,3740.7,6.84879644]
[1753541470418,1e-08,3740.8,3740.7,6.98239644]
[1753541477460,1e-08,3740.8,3740.7,6.07089644]
[1753541477623,1e-08,3740.8,3740.7,6.93784547]
[1753541477955,1e-08,3740.8,3740.7,7.38724547]
[1753541479222,1e-08,3740.8,3740.7,7.84864547]
[1753541484528,1e-08,3740.9,3740.8,2.67322497]
[1753541484859,1e-08,3740.9,3740.8,3.61075721]
[1753541485055,1e-08,3740.9,3740.8,4.93295633]
[1753541485224,0.2495,3741.3,3740.8,13.12411868]
[1753541485427,1e-08,3741.3,3741.2,3.61443916]
[1753541485739,1e-08,3741.3,3741.2,6.06643916]
[1753541485939,1e-08,3741.3,3741.2,6.51583916]
[1753541486139,1e-08,3741.3,3741.2,7.48086641]
[1753541486341,1e-08,3741.3,3741.2,7.94226641]
[1753541487351,1e-08,3741.3,3741.2,7.48086641]
[1753541487759,1e-08,3741.3,3741.2,7.03146641]
[1753541488064,1e-08,3741.3,3741.2,7.48086641]
[1753541488757,0.49140001,3741.3,3741.2,7.03146641]
[1753541488933,0.49140001,3741.3,3741.2,6.22356641]
[1753541489632,0.49140001,3741.3,3741.2,5.25853916]
[1753541489828,1.54480001,3741.3,3741.2,5.25853916]
[1753541490034,1.54480001,3741.3,3741.2,2.80653916]
[1753541491367,1.54480001,3741.3,3741.2,0.1336]
[1753541491965,1.54480001,3741.3,3741.2,2.80653916]
[1753541492264,1.54480001,3741.3,3741.2,0.1336]
[1753541493137,1.67655719,3741.3,3741.2,0.1336]
[1753541493340,30.0,3741.0,3740.8,0.1336]
[1753541493662,30.0,3741.0,3740.8,2.80676546]
[1753541493964,0.4914,3740.9,3740.8,2.80682497]
[1753541495668,0.4914,3740.9,3740.8,0.1336]
[1753541495869,0.759,3740.9,3740.8,0.1336]
[1753541496537,0.7602,3741.1,3740.8,0.1336]
[1753541496752,0.4914,3740.9,3740.8,2.80681288]
[1753541497745,0.4914,3740.9,3740.8,0.1336]
[1753541497746,0.759,3740.9,3740.8,0.1336]
[1753541497971,0.91359718,3740.9,3740.8,0.1336]
[1753541498478,0.91359718,3740.9,3740.8,2.80682497]
[1753541498634,0.91359718,3740.9,3740.8,0.1336]
[1753541499236,0.8119,3740.8,3740.6,0.001]
[1753541499568,1.3033,3740.8,3740.6,0.001]
[1753541499760,0.4914,3740.7,3740.6,0.001]
[1753541500334,0.67730972,3740.7,3740.6,0.001]
[1753541500532,1.7835815,3740.7,3740.6,0.001]
[1753541500979,31.7835815,3740.7,3740.6,0.001]
[1753541501133,31.75680972,3740.7,3740.6,0.001]
[1753541503174,32.30680972,3740.7,3740.6,0.001]
[1753541503413,37.89240972,3740.7,3740.6,0.001]
[1753541505602,38.11370616,3740.7,3740.6,0.001]
[1753541505794,40.56570616,3740.7,3740.6,0.001]
[1753541506805,37.89240972,3740.7,3740.6,0.001]
[1753541507810,7.04560972,3740.7,3740.6,0.001]
[1753541507996,6.7261,3740.7,3740.6,0.001]
[1753541508930,37.5437,3740.7,3740.6,0.001]
[1753541509079,40.21699644,3740.7,3740.6,0.001]
[1753541511112,7.2761,3740.7,3740.6,0.001]
[1753541512916,3.8119,3740.7,3740.6,0.001]
[1753541513087,3.8119,3740.7,3740.6,3.1175679]
[1753541513288,0.9578,3741.0,3740.6,3.5841679]
[1753541513488,5.452,3740.9,3740.6,0.9108]
[1753541513711,5.452,3740.9,3740.7,0.4432]
[1753541514121,5.452,3740.9,3740.6,0.001]
[1753541514409,0.4622,3740.8,3740.6,0.001]
[1753541514812,0.02677178,3740.7,3740.6,0.001]
[1753541515012,0.4622,3740.8,3740.6,0.001]
[1753541515314,5.452,3740.9,3740.7,0.4432]
[1753541515478,3.0,3740.8,3740.6,0.001]
[1753541515683,0.02677178,3740.8,3740.6,0.4442]
[1753541516224,0.4622,3740.8,3740.6,0.4442]
[1753541517319,30.0,3740.8,3740.6,0.001]
[1753541517521,3.0,3740.9,3740.7,0.4432]
[1753541517696,2.452,3740.8,3740.7,0.4432]
[1753541519723,30.0,3740.7,3740.6,0.001]
[1753541519887,30.4622,3740.7,3740.6,0.001]
[1753541520087,0.4622,3740.7,3740.6,0.001]
[1753541520326,1.2591,3740.7,3740.6,0.001]
[1753541520622,1.83643093,3740.7,3740.6,0.001]
[1753541521333,35.38643093,3740.7,3740.6,0.001]
[1753541521507,35.65403093,3740.7,3740.6,0.001]
[1753541521697,34.92423093,3740.7,3740.6,0.001]
[1753541522028,35.38643093,3740.7,3740.6,0.001]
[1753541523632,37.83843093,3740.7,3740.6,0.001]
[1753541523831,0.1336,3740.7,3740.6,0.4442]
[1753541524037,2.452,3740.7,3740.6,0.9108]
[1753541524194,0.1336,3740.9,3740.6,3.5841679]
[1753541524396,2.452,3740.8,3740.7,2.67329006]
[1753541524621,2.452,3740.8,3740.7,3.58309006]
[1753541525126,0.1336,3740.9,3740.7,3.58309006]
[1753541525324,0.1336,3740.9,3740.8,0.9098]
[1753541525512,2.452,3740.9,3740.8,0.9098]
[1753541526210,2.452,3740.9,3740.8,0.4432]
[1753541527098,0.1336,3741.0,3740.8,0.4432]
[1753541527297,0.1336,3741.0,3740.9,0.4432]
[1753541527498,35.5856,3741.0,3740.9,0.4432]
[1753541530040,1.26490001,3741.3,3740.9,0.9098]
[1753541530041,0.00200001,3741.3,3740.9,0.9098]
[1753541530245,2.452,3741.2,3741.0,0.9098]
[1753541530546,2.452,3741.2,3741.1,0.9098]
[1753541531104,2.452,3741.2,3741.1,3.11621061]
[1753541531322,2.452,3741.2,3741.1,3.58281061]
[1753541531530,0.00200001,3741.3,3741.1,3.58281061]
[1753541531726,2.452,3741.2,3741.1,3.58281061]
[1753541531951,0.00200001,3741.3,3741.2,0.4432]
[1753541532304,2.45400001,3741.3,3741.2,0.4432]
[1753541532809,2.45400001,3741.3,3741.0,2.67307211]
[1753541533007,0.4819,3741.2,3741.0,2.67307211]
[1753541533321,0.4819,3741.2,3741.0,3.13107211]
[1753541533624,2.45400001,3741.3,3741.1,2.67301061]
[1753541533823,2.45400001,3741.3,3741.1,3.13101061]
[1753541534240,2.45400001,3741.3,3741.1,0.458]
[1753541534912,2.45400001,3741.3,3741.1,3.13099544]
[1753541535342,2.45400001,3741.3,3741.1,0.458]
[1753541536049,2.45400001,3741.3,3741.1,3.13099916]
[1753541536742,2.45400001,3741.3,3741.1,0.458]
[1753541537159,2.45400001,3741.3,3741.1,3.13099373]
[1753541537744,0.00200001,3741.3,3741.1,3.13099373]
[1753541537932,2.452,3741.2,3741.1,2.67299373]
[1753541538120,2.452,3741.2,3741.1,3.13099373]
[1753541538742,2.452,3741.2,3741.1,3.12639373]
[1753541538944,2.452,3741.2,3740.9,0.1336]
[1753541539150,0.50867178,3741.1,3740.8,2.80681537]
[1753541539447,0.4819,3741.0,3740.8,3.26481537]
[1753541539742,2.451,3740.9,3740.8,2.80681537]
[1753541540045,2.451,3740.9,3740.8,3.26021537]
[1753541540240,2.451,3740.9,3740.8,1.18045831]
[1753541540459,2.451,3740.9,3740.8,3.71822497]
[1753541541763,0.00200001,3741.3,3741.1,2.67294875]
[1753541541964,0.00200001,3741.3,3741.2,2.67293916]
[1753541542267,2.45300001,3741.3,3741.2,2.67293916]
[1753541542431,2.45300001,3741.3,3741.2,3.58433916]
[1753541542927,2.45300001,3741.3,3741.2,3.71793916]
[1753541544682,0.00200001,3741.3,3741.2,4.43344076]
[1753541545759,0.00200001,3741.3,3741.2,3.52204076]
[1753541545960,0.00200001,3741.3,3741.2,2.80653916]
[1753541547146,0.48390001,3741.3,3741.2,2.80653916]
[1753541547343,0.00200001,3741.3,3741.2,3.26453916]
[1753541548767,0.00200001,3741.3,3741.2,3.71793916]
[1753541549239,0.00200001,3741.3,3741.2,4.51543916]
[1753541549446,0.00200001,3741.3,3741.2,5.23696357]
[1753541553245,1e-08,3741.3,3741.2,5.23696357]
[1753541553954,1e-08,3741.3,3741.2,12.07122592]
[1753541556066,1e-08,3741.3,3741.2,7.68796357]
[1753541561975,1e-08,3741.3,3741.2,7.23456357]
[1753541562198,1e-08,3741.3,3741.2,6.77556357]
[1753541562544,1e-08,3741.3,3741.2,7.22426357]
[1753541562873,1e-08,3741.3,3741.2,7.68146357]
[1753541563689,0.46920001,3741.3,3741.2,2.67293916]
[1753541565768,0.46920001,3741.3,3741.1,0.001]
[1753541565961,0.46920001,3741.3,3741.2,2.67293916]
[1753541568993,1e-08,3741.3,3741.2,2.67293916]
[1753541569171,0.46920001,3741.3,3741.2,2.67293916]
[1753541569667,1e-08,3741.3,3741.2,2.67293916]
[1753541570396,1e-08,3741.3,3741.2,3.12163916]
[1753541571101,1e-08,3741.3,3741.2,3.57883916]
[1753541571268,1e-08,3741.3,3741.2,4.20412987]
[1753541571470,1e-08,3741.3,3741.2,4.95632987]
[1753541572170,1e-08,3741.3,3741.2,4.49912987]
[1753541572370,1e-08,3741.3,3741.2,3.74692987]
[1753541573601,1e-08,3741.3,3741.2,4.20412987]
[1753541573903,1e-08,3741.3,3741.2,4.33772987]
[1753541575289,1e-08,3741.3,3741.2,6.78772987]
[1753541575992,1e-08,3741.3,3741.2,4.33772987]
[1753541576192,1e-08,3741.3,3741.2,4.36445926]
[1753541576587,1e-08,3741.3,3741.2,5.10072987]
[1753541576782,1e-08,3741.3,3741.2,5.12745926]
[1753541580592,1e-08,3741.3,3741.2,5.10072987]
[1753541581116,0.46920001,3741.3,3741.2,4.19482987]
[1753541581281,1e-08,3741.3,3741.2,4.64352987]
[1753541581709,1e-08,3741.3,3741.2,5.10072987]
[1753541582522,0.16037178,3742.5,3741.2,5.10072987]
[1753541582523,1.2878,3743.2,3741.4,2.67279627]
[1753541582724,0.4692,3743.1,3742.0,0.7752]
[1753541582924,0.2676,3743.0,3742.6,2.67188207]
[1753541583090,0.2676,3743.0,3742.0,3.44756771]
[1753541583091,1.31457178,3742.9,3742.3,2.45]
[1753541583421,0.7368,3742.8,3742.5,2.67195676]
[1753541583828,0.84537178,3742.9,3742.5,2.67195676]
[1753541584032,0.7368,3742.8,3742.5,2.67195676]
[1753541584323,0.4692,3742.7,3742.6,2.67193268]
[1753541587030,0.8186,3742.6,3742.2,2.67216824]
[1753541587239,0.84537178,3742.6,3742.0,5.12234558]
[1753541587435,0.7368,3742.5,3742.2,2.67216951]
[1753541587611,0.29437178,3742.5,3742.3,2.67212678]
[1753541587812,0.4692,3742.4,3742.3,2.67212678]
[1753541588199,0.4692,3742.4,3742.0,2.67234558]
[1753541588830,0.4692,3742.4,3742.3,2.67215348]
[1753541588997,0.4692,3742.4,3742.2,2.67221607]
[1753541589539,0.7368,3742.4,3742.2,2.67221607]
[1753541590013,0.02677178,3742.5,3742.3,2.67215348]
[1753541590208,0.4692,3742.4,3742.3,2.67215348]
[1753541591635,0.4692,3742.4,3742.0,2.67231087]
[1753541591833,0.82187178,3742.3,3741.7,2.67258198]
[1753541592040,31.2643,3742.2,3741.4,2.449]
[1753541592206,0.78767178,3742.1,3741.6,2.6726102]
[1753541592532,1.5152,3742.0,3741.8,0.1336]
[1753541592700,0.02677178,3741.9,3741.8,0.1336]
[1753541592898,0.52007178,3741.9,3741.8,0.1336]
[1753541593843,0.4933,3741.9,3741.8,0.1336]
[1753541594010,0.4933,3741.9,3741.8,2.80611055]
[1753541594742,0.4933,3741.9,3741.8,0.1336]
[1753541595302,0.4933,3741.9,3741.8,2.80611055]
[1753541597209,0.7543,3742.0,3741.9,2.67243913]
[1753541597410,0.002,3742.1,3742.0,2.67236771]
[1753541598026,0.002,3742.1,3742.0,3.70336771]
[1753541601746,0.002,3742.1,3742.0,4.41920543]
[1753541617478,0.002,3742.1,3742.0,3.95240543]
[1753541617681,0.002,3742.1,3742.0,3.95340543]
[1753541618187,0.002,3742.1,3742.0,4.42020543]
[1753541620450,0.002,3742.1,3742.0,3.95340543]
[1753541620979,0.002,3742.1,3742.0,3.52280543]
[1753541621284,0.002,3742.1,3742.0,2.80696771]
[1753541623550,0.002,3742.1,3742.0,5.25596771]
[1753541625785,0.4681,3742.1,3742.0,5.25596771]
[1753541626083,0.4681,3742.1,3742.0,5.70426771]
[1753541626251,0.002,3742.1,3742.0,5.70426771]
[1753541628190,0.002,3742.1,3742.0,6.16116771]
[1753541628953,0.002,3742.1,3742.0,7.04453543]
[1753541629293,0.002,3742.1,3742.0,7.84913543]
[1753541635290,0.002,3742.1,3742.0,5.40013543]
[1753541635495,0.002,3742.1,3742.0,7.84913543]
[1753541646417,1.432,3742.1,3740.5,0.61440681]
[1753541646577,4.605,3741.9,3739.6,0.001]
[1753541646782,36.22415429,3739.5,3739.1,1e-08]
[1753541646991,2.67479805,3738.6,3738.5,1e-08]
[1753541647332,49.69996704,3738.6,3738.5,1e-08]
[1753541647511,3.98192739,3738.0,3736.3,7.68545398]
[1753541647721,36.98207053,3737.8,3737.7,0.00049278]
[1753541648676,0.55,3737.4,3735.8,3.33266802]
[1753541649004,3.0,3736.8,3735.8,0.9052]
[1753541649205,0.55,3737.2,3735.8,3.7522]
[1753541649409,3.0,3737.3,3735.8,3.7522]
[1753541649410,3.0,3736.6,3735.9,0.40466426]
[1753541649580,3.0,3736.6,3736.0,0.4569]
[1753541649780,3.0,3736.9,3736.0,0.9052]
[1753541649980,3.0,3736.7,3736.0,0.9052]
[1753541650218,0.54098563,3737.1,3736.0,0.9052]
[1753541650521,3.0,3736.5,3736.0,1.3182097]
[1753541650675,3.0,3736.8,3736.0,1.3182097]
[1753541650875,2.67630757,3736.5,3736.1,0.4569]
[1753541651098,30.0,3736.7,3736.1,0.4569]
[1753541651099,2.676461,3736.3,3736.1,0.4569]
[1753541651486,2.67634861,3736.5,3736.1,0.4569]
[1753541651687,0.02677178,3736.6,3736.1,0.4569]
[1753541651890,2.67633825,3736.5,3736.1,0.4569]
[1753541652221,3.0,3736.2,3735.5,2.84]
[1753541652515,0.02677178,3736.1,3734.8,0.7825]
[1753541652722,0.7567,3736.6,3735.6,0.9251]
[1753541653012,0.7567,3736.6,3735.7,0.4726]
[1753541653230,2.67673539,3735.9,3735.5,2.838]
[1753541653506,2.67668109,3736.0,3735.6,0.4726]
[1753541653732,0.08372252,3735.9,3735.6,0.4726]
[1753541654030,2.70329982,3736.2,3735.7,0.4726]
[1753541654222,0.0837171,3736.1,3735.7,0.4726]
[1753541654412,0.0837171,3736.0,3735.7,0.4726]
[1753541654731,0.08371705,3735.9,3735.7,0.4726]
[1753541655028,0.08371705,3735.8,3735.7,0.4726]
[1753541655220,0.08371705,3735.8,3735.6,0.4525]
[1753541655417,0.08371705,3735.7,3735.2,0.4726]
[1753541655724,0.08371902,3735.6,3735.3,0.9251]
[1753541655924,0.08371902,3735.5,3735.3,0.9251]
[1753541656124,2.67674193,3735.9,3735.4,0.4726]
[1753541656326,3.0,3736.1,3735.4,0.4726]
[1753541656547,30.0,3736.0,3735.0,3.14994291]
[1753541656748,30.0,3736.0,3735.3,2.67712185]
[1753541656946,30.0,3736.0,3735.0,2.67737186]
[1753541656947,30.0,3736.0,3735.6,0.1336]
[1753541657255,30.0,3736.0,3735.7,0.4726]
[1753541657528,32.67666103,3736.0,3735.6,0.1336]
[1753541657699,30.0,3736.0,3735.6,0.1336]
[1753541658922,30.0,3736.0,3735.6,0.6062]
[1753541659232,30.0,3736.0,3735.6,0.1336]
[1753541659419,0.08371986,3735.9,3735.6,0.1336]
[1753541659625,0.08371986,3735.8,3735.6,0.1336]
[1753541659843,0.08371986,3735.7,3735.6,2.81053628]
[1753541660337,0.08371755,3735.7,3735.6,0.1336]
[1753541660536,0.08371755,3735.7,3735.6,2.81054613]
[1753541661237,0.08371755,3735.7,3735.6,3.28314613]
[1753541661407,0.08371755,3735.7,3735.6,3.73564613]
[1753541664538,0.08371755,3735.7,3735.6,0.1336]
[1753541665228,0.08371755,3735.7,3735.6,2.67694613]
[1753541665826,0.1336,3736.1,3735.8,2.6767979]
[1753541666030,0.1336,3736.1,3735.9,2.67671618]
[1753541666340,0.1336,3736.1,3735.9,2.6766635]
[1753541666524,0.1336,3736.1,3735.7,0.4726]
[1753541666728,30.0,3736.0,3735.5,0.1336]
[1753541666928,0.1336,3735.7,3735.2,0.1336]
[1753541667147,0.55,3735.1,3734.1,0.001]
[1753541667436,0.8067,3735.4,3734.1,0.001]
[1753541667437,3.0,3734.9,3734.8,2.67751954]
[1753541667637,0.1336,3735.1,3734.7,2.67757692]
[1753541667805,3.0,3734.9,3734.7,2.67757692]
[1753541668007,3.0,3734.8,3734.7,2.67757727]
[1753541668220,3.0,3734.9,3734.8,2.67748371]
[1753541668417,0.8067,3735.4,3735.3,2.67716113]
[1753541668627,6.7413,3735.4,3735.3,2.67716113]
[1753541668833,3.7413,3735.4,3735.1,2.67727552]
[1753541669033,3.0,3735.3,3734.9,2.67744785]
[1753541669247,3.0,3735.3,3734.4,2.67779948]
[1753541669248,30.0,3735.0,3734.4,2.67779948]
[1753541669454,0.16037178,3734.9,3734.4,0.1336]
[1753541669747,0.57677178,3735.2,3734.4,2.67774053]
[1753541669957,0.1336,3734.5,3734.4,2.67774053]
[1753541670541,0.1336,3734.5,3734.3,2.67787089]
[1753541670842,0.1336,3734.5,3734.4,2.67780634]
[1753541671146,2.798,3734.4,3734.3,2.67787181]
[1753541671309,3.5744,3734.4,3734.3,2.67787181]
[1753541673267,3.55,3734.3,3734.1,0.001]
[1753541673428,0.55,3734.3,3734.2,2.67794976]
[1753541673633,3.55,3734.3,3734.2,2.67794976]
[1753541674887,2.791,3734.3,3734.1,0.001]
[1753541675013,2.791,3734.3,3734.2,3.60304976]
[1753541675209,2.79,3734.3,3734.2,0.9251]
[1753541675446,3.0,3734.7,3734.3,2.67783254]
[1753541675610,3.0,3735.1,3734.6,2.67765783]
[1753541675810,0.55,3734.8,3734.3,3.15047776]
[1753541676028,0.55,3734.8,3734.5,2.67766491]
[1753541676656,30.0,3735.1,3734.1,0.001]
[1753541676827,3.55,3734.8,3734.1,0.001]
[1753541677021,0.97459565,3735.5,3734.1,0.001]
[1753541677022,3.0,3734.6,3734.5,2.67773463]
[1753541677217,0.55,3734.5,3734.1,0.001]
[1753541677430,0.02677178,3734.4,3734.1,0.001]
[1753541677636,0.55,3734.5,3734.1,2.6790212]
[1753541678226,3.55,3734.3,3734.1,2.6790212]
[1753541678443,0.63374526,3734.2,3734.1,2.6790212]
[1753541680821,5.86674526,3734.2,3734.1,2.6790212]
[1753541681118,3.08374526,3734.2,3734.1,2.6790212]
[1753541681519,0.08374526,3734.2,3734.1,3.6041212]
[1753541681752,2.86074526,3734.2,3734.1,4.23234976]
[1753541682268,0.08374526,3734.2,3734.1,3.6041212]
[1753541683255,1e-08,3734.2,3734.1,3.76450141]
[1753541683419,1e-08,3734.2,3734.1,3.7377212]
[1753541683619,1e-08,3734.2,3734.1,3.1516212]
[1753541683859,1e-08,3734.2,3734.1,2.6790212]
[1753541684361,1e-08,3734.2,3734.1,3.1503212]
[1753541684717,1e-08,3734.2,3734.1,3.6059212]
[1753541685652,3.00000001,3734.2,3734.1,0.4723]
[1753541685857,3.0,3734.2,3734.1,3.15032147]
[1753541687251,3.0,3734.2,3734.1,3.60592147]
[1753541689460,3.55,3734.8,3734.5,2.67770465]
[1753541689754,2.763,3734.7,3734.4,2.67775226]
[1753541690134,0.55,3734.9,3734.4,2.67775226]
[1753541690348,3.55,3734.7,3734.4,2.67775226]
[1753541691204,0.55,3734.9,3734.4,2.67775226]
[1753541691339,2.756,3734.6,3734.5,2.67771808]
[1753541692270,5.752,3734.6,3734.5,2.67771808]
[1753541692669,5.752,3734.6,3734.2,0.4713]
[1753541692670,3.0,3734.5,3734.4,2.6777834]
[1753541693664,3.1336,3734.5,3734.4,2.6777834]
[1753541693843,3.1336,3734.5,3734.4,3.1490834]
[1753541694244,3.38152606,3734.5,3734.4,3.1490834]
[1753541694975,3.38152606,3734.5,3734.4,0.4713]